fUST/lending_fUST_20250619
["ID","MTS","AMOUNT","RATE_DAILY","PERIOD"]
[366542678,1750312233853,-430.0,0.00021917,6]
[366542679,1750312233862,-460.0,0.00021917,6]
[366542680,1750312233871,-436.69554052,0.00021917,6]
[366542681,1750312233881,-2580.48,0.00021917,6]
[366542682,1750312233890,-460.0,0.00021917,6]
[366542683,1750312233899,-460.0,0.00021917,6]
[366542685,1750312233909,-445.82414822,0.00021917,6]
[366542687,1750312233919,-431.64170506,0.00021917,6]
[366542689,1750312233928,-460.0,0.00021917,6]
[366542690,1750312233937,-454.75748056,0.00021917,6]
[366542691,1750312233947,-442.60505737,0.00021917,6]
[366542692,1750312233956,-460.0,0.00021917,6]
[366542693,1750312233965,-460.0,0.00021917,6]
[366542694,1750312233975,-460.0,0.00021917,6]
[366542695,1750312233984,-460.0,0.00021917,6]
[366542696,1750312233993,-523.5,0.00021917,6]
[366542697,1750312234002,-278.34263414,0.00021917,6]
[366542698,1750312234012,-460.0,0.00021917,6]
[366542699,1750312234022,-460.0,0.00021917,6]
[366542700,1750312234032,-460.0,0.00021917,6]
[366542701,1750312234041,-412.17394564,0.00021917,6]
[366542702,1750312234051,-460.0,0.00021917,6]
[366542703,1750312234061,-405.30714718,0.00021917,6]
[366542704,1750312234070,-460.0,0.00021917,6]
[366542705,1750312234080,-460.0,0.00021917,6]
[366542706,1750312234089,-460.0,0.00021917,6]
[366542707,1750312234098,-404.37876923,0.00021917,6]
[366542708,1750312234107,-460.0,0.00021917,6]
[366542709,1750312234116,-460.0,0.00021917,6]
[366542710,1750312234125,-460.0,0.00021917,6]
[366542711,1750312234135,-453.07188305,0.00021917,6]
[366542712,1750312234144,-460.0,0.00021917,6]
[366542713,1750312234153,-460.0,0.00021917,6]
[366542714,1750312234163,-460.0,0.00021917,6]
[366542715,1750312234172,-460.0,0.00021917,6]
[366542716,1750312234181,-460.0,0.00021917,6]
[366542717,1750312234190,-439.3527542,0.00021917,6]
[366542718,1750312234199,-460.0,0.00021917,6]
[366542719,1750312234208,-2383.12,0.00021917,6]
[366542720,1750312234217,-460.0,0.00021917,6]
[366542721,1750312234227,-460.0,0.00021917,6]
[366542722,1750312234237,-460.0,0.00021917,6]
[366542723,1750312234249,-460.0,0.00021917,6]
[366542724,1750312234259,-460.0,0.00021917,6]
[366542725,1750312234269,-460.0,0.00021917,6]
[366542726,1750312234278,-3339.81,0.00021917,6]
[366542727,1750312234289,-460.0,0.00021917,6]
[366542728,1750312234299,-3339.81,0.00021917,6]
[366542729,1750312234308,-3339.81,0.00021917,6]
[366542730,1750312234319,-3339.81,0.00021917,6]
[366542731,1750312234328,-3339.81,0.00021917,6]
[366542732,1750312234338,-3339.81,0.00021917,6]
[366542733,1750312234348,-745.6,0.00021917,6]
[366542734,1750312234357,-3339.81,0.00021917,6]
[366542735,1750312234369,-3339.81,0.00021917,6]
[366542736,1750312234379,-3339.81,0.00021917,6]
[366542737,1750312234388,-3257.09,0.00021917,6]
[366542738,1750312234399,-460.0,0.00021917,6]
[366542739,1750312234408,-575.69,0.00021917,6]
[366542740,1750312234418,-254.56665283,0.00021917,6]
[366542741,1750312234427,-460.0,0.00021917,6]
[366542742,1750312234436,-460.0,0.00021917,6]
[366542743,1750312234445,-460.0,0.00021917,6]
[366542744,1750312234454,-460.0,0.00021917,6]
[366542745,1750312234463,-455.39874067,0.00021917,6]
[366542746,1750312234472,-460.0,0.00021917,6]
[366542747,1750312234481,-452.15522675,0.00021917,6]
[366542748,1750312234491,-443.19302072,0.00021917,6]
[366542749,1750312234500,-435.18584726,0.00021917,6]
[366542750,1750312234509,-460.0,0.00021917,6]
[366542751,1750312234518,-460.0,0.00021917,6]
[366542752,1750312234528,-440.0,0.00021917,6]
[366542753,1750312234538,-503.57587924,0.00021917,6]
[366542754,1750312234547,-460.0,0.00021917,6]
[366542755,1750312234557,-3321.22,0.00021917,6]
[366542756,1750312234567,-460.0,0.00021917,6]
[366542757,1750312234576,-460.0,0.00021917,6]
[366542758,1750312234585,-577.52,0.00021917,6]
[366542759,1750312234595,-1277.97,0.00021917,6]
[366542760,1750312234604,-460.0,0.00021917,6]
[366542761,1750312234613,-460.0,0.00021917,6]
[366542762,1750312234623,-460.0,0.00021917,6]
[366542763,1750312234632,-460.0,0.00021917,6]
[366542764,1750312234642,-460.0,0.00021917,6]
[366542765,1750312234651,-460.0,0.00021917,6]
[366542766,1750312234660,-460.0,0.00021917,6]
[366542767,1750312234795,-460.0,0.00021917,6]
[366542768,1750312234805,-460.0,0.00021917,6]
[366542769,1750312234815,-460.0,0.00021917,6]
[366542770,1750312234824,-460.0,0.00021917,6]
[366542771,1750312234834,-460.0,0.00021917,6]
[366542772,1750312234843,-460.0,0.00021917,6]
[366542773,1750312234852,-460.0,0.00021917,6]
[366542774,1750312234862,-430.0,0.00021917,6]
[366542775,1750312234871,-460.0,0.00021917,6]
[366542776,1750312234880,-460.0,0.00021917,6]
[366542777,1750312234890,-460.0,0.00021917,6]
[366542778,1750312234899,-460.0,0.00021917,6]
[366542779,1750312234909,-440.0,0.00021917,6]
[366542780,1750312234919,-4070.67,0.00021917,6]
[366542781,1750312234928,-1181.86,0.00021917,6]
[366542782,1750312234938,-460.0,0.00021917,6]
[366542783,1750312234947,-460.0,0.00021917,6]
[366542784,1750312234955,-450.0,0.00021917,6]
[366542785,1750312234965,-460.0,0.00021917,6]
[366542786,1750312234974,-430.0,0.00021917,6]
[366542787,1750312234983,-433.633589,0.00021917,6]
[366542788,1750312234992,-452.64615683,0.00021917,6]
[366542789,1750312235001,-460.0,0.00021917,6]
[366542790,1750312235010,-482.75,0.00021917,6]
[366542791,1750312235019,-460.0,0.00021917,6]
[366542792,1750312235028,-460.0,0.00021917,6]
[366542793,1750312235037,-460.0,0.00021917,6]
[366542794,1750312235045,-460.0,0.00021917,6]
[366542795,1750312235054,-810.76,0.00021917,6]
[366542796,1750312235063,-538.06,0.00021917,6]
[366542797,1750312235073,-441.26854018,0.00021917,6]
[366542798,1750312235084,-937.39,0.00021917,6]
[366542799,1750312235093,-430.0,0.00021917,6]
[366542800,1750312235104,-458.02230774,0.00021917,6]
[366542801,1750312235113,-460.0,0.00021917,6]
[366542802,1750312235122,-485.74,0.00021917,6]
[366542803,1750312235130,-460.0,0.00021917,6]
[366542804,1750312235139,-460.0,0.00021917,6]
[366542805,1750312235148,-442.02462515,0.00021917,6]
[366542806,1750312235157,-460.0,0.00021917,6]
[366542807,1750312235166,-459.35411922,0.00021917,6]
[366542808,1750312235175,-460.0,0.00021917,6]
[366542809,1750312235184,-432.84448559,0.00021917,6]
[366542810,1750312235193,-460.0,0.00021917,6]
[366542811,1750312235202,-431.29772155,0.00021917,6]
[366542812,1750312235211,-460.0,0.00021917,6]
[366542813,1750312235220,-493.64,0.00021917,6]
[366542814,1750312235229,-460.0,0.00021917,6]
[366542815,1750312235237,-460.0,0.00021917,6]
[366542816,1750312235250,-460.0,0.00021917,6]
[366542817,1750312235259,-460.0,0.00021917,6]
[366542818,1750312235270,-460.0,0.00021917,6]
[366542819,1750312235281,-430.0,0.00021917,6]
[366542820,1750312235290,-725.2,0.00021917,6]
[366542821,1750312235300,-514.98,0.00021917,6]
[366542822,1750312235310,-443.03961644,0.00021917,6]
[366542823,1750312235321,-404.49147543,0.00021917,6]
[366542824,1750312235331,-460.0,0.00021917,6]
[366542825,1750312235341,-460.0,0.00021917,6]
[366542826,1750312235350,-432.51293503,0.00021917,6]
[366542827,1750312235360,-460.0,0.00021917,6]
[366542828,1750312235369,-460.0,0.00021917,6]
[366542829,1750312235378,-969.54,0.00021917,6]
[366542830,1750312235388,-460.0,0.00021917,6]
[366542831,1750312235397,-507.1121519,0.00021917,6]
[366542832,1750312235406,-460.0,0.00021917,6]
[366542833,1750312235415,-460.0,0.00021917,6]
[366542834,1750312235425,-367.89087882,0.00021917,6]
[366542835,1750312235434,-460.0,0.00021917,6]
[366542836,1750312235443,-1449.41,0.00021917,6]
[366542837,1750312235452,-460.0,0.00021917,6]
[366542838,1750312235461,-460.0,0.00021917,6]
[366542839,1750312235470,-460.0,0.00021917,6]
[366542840,1750312235480,-460.0,0.00021917,6]
[366542841,1750312235490,-496.24368061,0.00021917,6]
[366542842,1750312235500,-460.0,0.00021917,6]
[366542843,1750312235509,-460.0,0.00021917,6]
[366542844,1750312235519,-455.27610049,0.00021917,6]
[366542845,1750312235528,-460.0,0.00021917,6]
[366542846,1750312235537,-430.0,0.00021917,6]
[366542847,1750312235548,-460.0,0.00021917,6]
[366542848,1750312235557,-460.0,0.00021917,6]
[366542849,1750312235566,-460.0,0.00021917,6]
[366542850,1750312235576,-460.0,0.00021917,6]
[366542851,1750312235585,-424.99006563,0.00021917,6]
[366542852,1750312235594,-460.0,0.00021917,6]
[366542853,1750312235604,-460.0,0.00021917,6]
[366542854,1750312235613,-1450.16,0.00021917,6]
[366542855,1750312235622,-461.41279938,0.00021917,6]
[366542856,1750312235632,-460.0,0.00021917,6]
[366542857,1750312235641,-441.16089819,0.00021917,6]
[366542858,1750312235651,-460.0,0.00021917,6]
[366542859,1750312235661,-460.0,0.00021917,6]
[366542860,1750312235671,-458.27026235,0.00021917,6]
[366542861,1750312235681,-297.41345971,0.00021917,6]
[366542862,1750312235690,-460.0,0.00021917,6]
[366542863,1750312235700,-460.0,0.00021917,6]
[366542864,1750312235710,-460.0,0.00021917,6]
[366542865,1750312235719,-460.0,0.00021917,6]
[366542866,1750312235728,-460.0,0.00021917,6]
[366542867,1750312235738,-511.82,0.00021917,6]
[366542868,1750312235747,-460.0,0.00021917,6]
[366542869,1750312235757,-2327.61,0.00021917,6]
[366542870,1750312235767,-430.0,0.00021917,6]
[366542871,1750312235776,-702.0,0.00021917,6]
[366542872,1750312235786,-460.0,0.00021917,6]
[366542873,1750312235796,-2846.52,0.00021917,6]
[366542874,1750312235806,-460.0,0.00021917,6]
[366542875,1750312235815,-1736.04,0.00021917,6]
[366542876,1750312235824,-750.56,0.00021917,6]
[366542877,1750312235834,-298.2567276,0.00021917,6]
[366542878,1750312235843,-460.0,0.00021917,6]
[366542879,1750312235852,-460.0,0.00021917,6]
[366542880,1750312235862,-2294.54,0.00021917,6]
[366542881,1750312235871,-460.0,0.00021917,6]
[366542882,1750312235880,-460.0,0.00021917,6]
[366542883,1750312235890,-236.68465088,0.00021917,6]
[366542884,1750312235899,-300.0,0.00021917,2]
[366542885,1750312235909,-460.0,0.00021917,6]
[366542886,1750312235918,-532.48,0.00021917,6]
[366542887,1750312235927,-460.0,0.00021917,6]
[366542888,1750312235938,-460.0,0.00021917,6]
[366542889,1750312235949,-553.56,0.00021917,6]
[366542890,1750312235958,-3339.81,0.0002195,6]
[366542891,1750312235968,-12544.68530873,0.00021951,2]
[366542892,1750312235977,-160.0,0.00021951,2]
[366542893,1750312235987,-500.0,0.00021973,2]
[366542894,1750312235996,-679.06678717,0.00022065,2]
[366542895,1750312236005,-2699.25886818,0.0002209,2]
[366542896,1750312236015,-160.0,0.00022165,2]
[366542897,1750312236024,-160.0,0.00022165,2]
[366542898,1750312236033,-508.10375771,0.00022173,2]
[366542899,1750312236042,-500.0,0.00022173,2]
[366542900,1750312236052,-501.95520014,0.00022173,2]
[366542901,1750312236061,-500.0,0.00022173,2]
[366542902,1750312236071,-500.52504499,0.00022173,2]
[366542903,1750312236080,-500.0,0.00022173,2]
[366542904,1750312236089,-500.0,0.00022173,2]
[366542905,1750312236098,-500.0,0.00022173,2]
[366542906,1750312236107,-258.95910129,0.00022173,2]
[366542907,1750312236116,-500.0,0.00022173,2]
[366542908,1750312236126,-500.0,0.00022173,2]
[366542909,1750312236135,-500.0,0.00022173,2]
[366542910,1750312236144,-261.11899515,0.00022173,2]
[366542911,1750312236153,-487.07405773,0.00022173,2]
[366542912,1750312236162,-600.0,0.00022173,2]
[366542913,1750312236171,-502.11035194,0.00022173,2]
[366542914,1750312236180,-3339.81,0.00022189,6]
[366542915,1750312236189,-3339.81,0.00022189,6]
[366542916,1750312236199,-3339.81,0.00022189,6]
[366542917,1750312236207,-3339.81,0.00022189,6]
[366542918,1750312236217,-230.0259007,0.0002219,2]
[366542919,1750312236226,-213.47708638,0.0002219,2]
[366542920,1750312236235,-160.0,0.0002219,2]
[366542921,1750312236247,-160.0,0.0002219,2]
[366542922,1750312236256,-424.78309573,0.0002219,2]
[366542923,1750312236265,-845.93775772,0.0002219,2]
[366542924,1750312236274,-459.10131722,0.0002219,6]
[366542925,1750312236283,-444.03564968,0.0002219,6]
[366542926,1750312236292,-460.0,0.0002219,6]
[366542927,1750312236301,-460.0,0.0002219,6]
[366542928,1750312236310,-460.0,0.0002219,6]
[366542929,1750312236321,-460.0,0.0002219,6]
[366542930,1750312236330,-460.0,0.0002219,6]
[366542931,1750312236339,-460.0,0.0002219,6]
[366542932,1750312236348,-460.0,0.0002219,6]
[366542933,1750312236357,-441.866122,0.0002219,6]
[366542934,1750312236366,-460.0,0.0002219,6]
[366542935,1750312236376,-440.0,0.0002219,6]
[366542936,1750312236385,-442.01267997,0.0002219,6]
[366542937,1750312236395,-384.25872073,0.0002219,6]
[366542938,1750312236405,-430.0,0.0002219,6]
[366542939,1750312236415,-406.81593456,0.0002219,6]
[366542940,1750312236423,-450.0,0.0002219,6]
[366542941,1750312236432,-460.0,0.0002219,6]
[366542942,1750312236442,-430.0,0.0002219,6]
[366542943,1750312236451,-460.0,0.0002219,6]
[366542944,1750312236460,-460.0,0.0002219,6]
[366542945,1750312236471,-460.0,0.0002219,6]
[366542946,1750312236480,-430.0,0.0002219,6]
[366542947,1750312236489,-460.0,0.0002219,6]
[366542948,1750312236498,-167.1776934,0.0002219,6]
[366542949,1750312236507,-460.0,0.0002219,6]
[366542950,1750312236517,-435.23677961,0.0002219,6]
[366542951,1750312236526,-343.66140816,0.0002219,6]
[366542952,1750312236545,-96.57233746,0.0002219,6]
[366542953,1750312236554,-460.0,0.0002219,6]
[366542954,1750312236564,-403.60423877,0.0002219,6]
[366542955,1750312236573,-460.0,0.0002219,6]
[366542956,1750312236582,-460.0,0.0002219,6]
[366542957,1750312236591,-184.32901737,0.0002219,6]
[366542958,1750312236603,-248.13380323,0.0002219,6]
[366542959,1750312236612,-213.28869677,0.0002219,6]
[366542960,1750312236638,-219.8519617,0.0002219,6]
[366542961,1750312236647,-432.82338444,0.0002219,6]
[366542962,1750312236658,-460.0,0.0002219,6]
[366542963,1750312236667,-455.17085407,0.0002219,6]
[366542964,1750312236677,-436.79842344,0.0002219,6]
[366542965,1750312236687,-460.0,0.0002219,6]
[366542966,1750312236697,-432.75505077,0.0002219,6]
[366542967,1750312236706,-371.36918274,0.0002219,6]
[366542968,1750312236716,-430.0,0.0002219,6]
[366542969,1750312236725,-430.0,0.0002219,6]
[366542970,1750312236735,-460.0,0.0002219,6]
[366542971,1750312236745,-435.64573783,0.0002219,6]
[366542972,1750312236754,-443.18315503,0.0002219,6]
[366542973,1750312236764,-430.0,0.0002219,6]
[366542974,1750312236774,-266.92373902,0.0002219,6]
[366542975,1750312236783,-349.3730429,0.0002219,6]
[366542976,1750312236792,-370.33071825,0.0002219,6]
[366542977,1750312236802,-430.0,0.0002219,6]
[366542978,1750312236812,-460.0,0.0002219,6]
[366542979,1750312236821,-434.62908407,0.0002219,6]
[366542980,1750312236830,-460.0,0.0002219,6]
[366542981,1750312236840,-559.6081218,0.0002219,6]
[366542982,1750312236850,-377.95587204,0.0002219,6]
[366542983,1750312236859,-460.0,0.0002219,6]
[366542984,1750312236869,-460.0,0.0002219,6]
[366542985,1750312236880,-460.0,0.0002219,6]
[366542986,1750312236889,-453.36365947,0.0002219,6]
[366542987,1750312236899,-430.0,0.0002219,6]
[366542988,1750312236908,-460.0,0.0002219,6]
[366542989,1750312236918,-430.0,0.0002219,6]
[366542990,1750312236927,-431.14606688,0.0002219,6]
[366542991,1750312236938,-460.0,0.0002219,6]
[366542992,1750312236947,-439.85044968,0.0002219,6]
[366542993,1750312236958,-460.0,0.0002219,6]
[366542994,1750312236969,-430.0,0.0002219,6]
[366542995,1750312236978,-500.0,0.0002219,6]
[366542996,1750312236987,-500.0,0.0002219,6]
[366542997,1750312236996,-500.0,0.0002219,6]
[366542998,1750312237006,-500.0,0.0002219,6]
[366542999,1750312237015,-500.0,0.0002219,6]
[366543000,1750312237024,-410.5081298,0.0002219,6]
[366543001,1750312237033,-430.0,0.0002219,6]
[366543002,1750312237042,-430.0,0.0002219,6]
[366543003,1750312237052,-430.0,0.0002219,6]
[366543004,1750312237062,-430.0,0.0002219,6]
[366543005,1750312237073,-430.0,0.0002219,6]
[366543006,1750312237083,-430.0,0.0002219,6]
[366543007,1750312237092,-430.0,0.0002219,6]
[366543008,1750312237102,-430.0,0.0002219,6]
[366543009,1750312237111,-430.0,0.0002219,6]
[366543010,1750312237121,-442.89870059,0.0002219,6]
[366543011,1750312237131,-430.0,0.0002219,6]
[366543012,1750312237141,-430.0,0.0002219,6]
[366543013,1750312237150,-430.0,0.0002219,6]
[366543014,1750312237161,-178.08582138,0.0002219,6]
[366543015,1750312237171,-430.0,0.0002219,6]
[366543016,1750312237181,-348.33069632,0.0002219,6]
[366543017,1750312237190,-430.0,0.0002219,6]
[366543018,1750312237199,-440.0,0.0002219,6]
[366543019,1750312237210,-436.85540727,0.0002219,6]
[366543020,1750312237221,-398.01778628,0.0002219,6]
[366543021,1750312237230,-460.0,0.0002219,6]
[366543022,1750312237243,-1418.62,0.0002219,6]
[366543023,1750312237252,-460.0,0.0002219,6]
[366543024,1750312237262,-460.0,0.0002219,6]
[366543025,1750312237272,-440.0,0.0002219,6]
[366543026,1750312237282,-440.0,0.0002219,6]
[366543027,1750312237291,-204.72749902,0.0002219,6]
[366543028,1750312237301,-460.0,0.0002219,6]
[366543029,1750312237310,-440.0,0.0002219,6]
[366543030,1750312237320,-430.0,0.0002219,6]
[366543031,1750312237329,-821.28,0.0002219,6]
[366543032,1750312237338,-420.0,0.0002219,6]
[366543033,1750312237347,-440.0,0.0002219,6]
[366543034,1750312237356,-460.0,0.0002219,6]
[366543035,1750312237366,-430.0,0.0002219,6]
[366543036,1750312237376,-403.24618801,0.0002219,6]
[366543037,1750312237385,-440.0,0.0002219,6]
[366543038,1750312237394,-440.0,0.0002219,6]
[366543039,1750312237403,-460.0,0.0002219,6]
[366543040,1750312237413,-438.72849273,0.0002219,6]
[366543041,1750312237421,-340.70905191,0.0002219,6]
[366543042,1750312237435,-2999.10094809,0.0002219,6]
[366543043,1750312237443,-3339.81,0.0002219,6]
[366543044,1750312237453,-3339.81,0.0002219,6]
[366543045,1750312237462,-3339.81,0.0002219,6]
[366543046,1750312237471,-440.0,0.0002219,6]
[366543047,1750312237480,-443.77498169,0.0002219,6]
[366543048,1750312237489,-440.0,0.0002219,6]
[366543049,1750312237498,-1718.46,0.0002219,6]
[366543050,1750312237506,-370.0,0.0002219,6]
[366543051,1750312237515,-436.12224117,0.0002219,6]
[366543052,1750312237524,-163.12026565,0.0002219,6]
[366543053,1750312237534,-430.0,0.0002219,6]
[366543054,1750312237543,-440.0,0.0002219,6]
[366543055,1750312237552,-460.0,0.0002219,6]
[366543056,1750312237562,-440.0,0.0002219,6]
[366543057,1750312237576,-440.0,0.0002219,6]
[366543058,1750312237586,-440.0,0.0002219,6]
[366543059,1750312237597,-440.0,0.0002219,6]
[366543060,1750312237606,-4299.95,0.0002219,6]
[366543061,1750312237707,-374.24955741,0.0002219,6]
[366543062,1750312237731,-454.86905419,0.0002219,6]
[366543063,1750312237741,-440.0,0.0002219,6]
[366543065,1750312237750,-506.31210021,0.0002219,6]
[366543066,1750312237759,-451.3409885,0.0002219,6]
[366543067,1750312237769,-1008.85659759,0.0002219,6]
[366543068,1750312237778,-450.4196552,0.0002219,6]
[366543069,1750312237788,-433.19812214,0.0002219,6]
[366543070,1750312237798,-460.0,0.0002219,6]
[366543071,1750312237808,-460.0,0.0002219,6]
[366543072,1750312237817,-460.0,0.0002219,6]
[366543073,1750312237826,-455.85448324,0.0002219,6]
[366543074,1750312237835,-442.25925426,0.0002219,6]
[366543075,1750312237845,-443.41047663,0.0002219,6]
[366543076,1750312237855,-460.0,0.0002219,6]
[366543077,1750312237864,-454.18234126,0.0002219,6]
[366543078,1750312237873,-435.18885065,0.0002219,6]
[366543079,1750312237883,-440.0,0.0002219,6]
[366543080,1750312237892,-405.86267278,0.0002219,6]
[366543081,1750312237901,-460.0,0.0002219,6]
[366543082,1750312237910,-1388.55,0.0002219,6]
[366543083,1750312237920,-460.0,0.0002219,6]
[366543084,1750312237930,-460.0,0.0002219,6]
[366543085,1750312237939,-460.0,0.0002219,6]
[366543086,1750312237949,-440.0,0.0002219,6]
[366543087,1750312237959,-435.0,0.0002219,6]
[366543088,1750312237968,-440.0,0.0002219,6]
[366543089,1750312237977,-460.0,0.0002219,6]
[366543090,1750312237986,-440.0,0.0002219,6]
[366543091,1750312237995,-440.0,0.0002219,6]
[366543092,1750312238004,-460.0,0.0002219,6]
[366543093,1750312238013,-440.0,0.0002219,6]
[366543094,1750312238022,-420.0,0.00022191,6]
[366543095,1750312238031,-460.0,0.00022191,6]
[366543096,1750312238039,-460.0,0.00022191,6]
[366543097,1750312238048,-460.0,0.00022191,6]
[366543098,1750312238057,-460.0,0.00022191,6]
[366543099,1750312238067,-400.0,0.00022191,6]
[366543100,1750312238076,-400.0,0.00022191,6]
[366543101,1750312238085,-689.04,0.00022191,6]
[366543102,1750312238094,-308.13655166,0.00022191,6]
[366543103,1750312238103,-280.32168964,0.00022191,6]
[366543104,1750312238112,-460.0,0.00022191,6]
[366543105,1750312238121,-460.0,0.00022191,6]
[366543106,1750312238130,-460.0,0.00022191,6]
[366543107,1750312238139,-460.0,0.00022191,6]
[366543108,1750312238148,-229.91902117,0.00022191,6]
[366543109,1750312238157,-400.0,0.00022191,6]
[366543110,1750312238166,-400.0,0.00022191,6]
[366543111,1750312238174,-460.0,0.00022191,6]
[366543112,1750312238183,-460.0,0.00022191,6]
[366543113,1750312238193,-460.0,0.00022191,6]
[366543114,1750312238202,-204.96029173,0.00022191,6]
[366543115,1750312238210,-400.0,0.00022191,6]
[366543116,1750312238220,-460.0,0.00022191,6]
[366543117,1750312238229,-400.0,0.00022191,6]
[366543118,1750312238238,-460.0,0.00022191,6]
[366543119,1750312238252,-400.0,0.00022191,6]
[366543120,1750312238260,-400.0,0.00022191,6]
[366543121,1750312238269,-607.13,0.00022191,6]
[366543122,1750312238279,-168.04279203,0.00022191,6]
[366543123,1750312238290,-374.82383243,0.00022191,6]
[366543124,1750312238299,-409.41340105,0.00022191,6]
[366543126,1750312238309,-571.32,0.00022191,6]
[366543128,1750312238317,-460.0,0.00022191,6]
[366543130,1750312238327,-460.0,0.00022191,6]
[366543132,1750312238337,-1647.06,0.00022191,6]
[366543133,1750312238346,-430.0,0.00022191,6]
[366543134,1750312238356,-460.0,0.00022191,6]
[366543135,1750312238365,-460.0,0.00022191,6]
[366543136,1750312238374,-400.0,0.00022191,6]
[366543137,1750312238384,-460.0,0.00022191,6]
[366543138,1750312238393,-460.0,0.00022191,6]
[366543139,1750312238403,-460.0,0.00022191,6]
[366543140,1750312238412,-430.0,0.00022191,6]
[366543141,1750312238422,-796.26,0.00022191,6]
[366543142,1750312238431,-460.0,0.00022191,6]
[366543143,1750312238441,-223.78708938,0.00022191,6]
[366543144,1750312238450,-460.0,0.00022191,6]
[366543145,1750312238460,-460.0,0.00022191,6]
[366543146,1750312238469,-460.0,0.00022191,6]
[366543147,1750312238478,-460.0,0.00022191,6]
[366543148,1750312238487,-482.38024656,0.00022191,6]
[366543150,1750312238497,-460.0,0.00022191,6]
[366543151,1750312238506,-460.0,0.00022191,6]
[366543152,1750312238516,-429.15715305,0.00022191,6]
[366543153,1750312238525,-419.17462273,0.00022191,6]
[366543154,1750312238535,-460.0,0.00022191,6]
[366543155,1750312238546,-400.0,0.00022191,6]
[366543156,1750312238555,-460.0,0.00022191,6]
[366543157,1750312238565,-440.0,0.00022191,6]
[366543158,1750312238574,-400.0,0.00022191,6]
[366543159,1750312238583,-403.54298025,0.00022191,6]
[366543160,1750312238594,-406.01360692,0.00022191,6]
[366543161,1750312238604,-460.0,0.00022191,6]
[366543162,1750312238613,-400.0,0.00022191,6]
[366543163,1750312238622,-460.0,0.00022191,6]
[366543164,1750312238631,-228.43464187,0.00022191,6]
[366543165,1750312238640,-460.0,0.00022191,6]
[366543166,1750312238650,-2580.48,0.00022191,6]
[366543167,1750312238659,-460.0,0.00022191,6]
[366543168,1750312238668,-400.0,0.00022191,6]
[366543169,1750312238678,-440.0,0.00022191,6]
[366543170,1750312238687,-460.0,0.00022191,6]
[366543171,1750312238696,-523.5,0.00022191,6]
[366543172,1750312238705,-460.0,0.00022191,6]
[366543173,1750312238714,-400.0,0.00022191,6]
[366543174,1750312238724,-400.0,0.00022191,6]
[366543175,1750312238733,-400.0,0.00022191,6]
[366543176,1750312238742,-400.0,0.00022191,6]
[366543177,1750312238752,-460.0,0.00022191,6]
[366543178,1750312238761,-460.0,0.00022191,6]
[366543179,1750312238770,-460.0,0.00022191,6]
[366543180,1750312238780,-390.0,0.00022191,6]
[366543181,1750312238789,-217.69284596,0.00022191,6]
[366543182,1750312238800,-420.0,0.00022191,6]
[366543183,1750312238809,-460.0,0.00022191,6]
[366543184,1750312238818,-394.36457735,0.00022191,6]
[366543185,1750312238827,-460.0,0.00022191,6]
[366543186,1750312238836,-400.0,0.00022191,6]